[Event "5th Vera Menchik Memorial 2022"]
[Site "Prag"]
[Date "2022.06.05"]
[Round "6.14"]
[White "Soural, Jan"]
[Black "Hozda, Max"]
[Result "1-0"]
[ECO "D11"]
[WhiteElo "2140"]
[BlackElo "1832"]
[Annotator "TA"]
[PlyCount "132"]
[EventDate "2022.06.05"]
[EventType "tourn"]
[EventCountry "CZE"]
[SourceTitle "playchess.com"]
[Source "ChessBase"]
[SourceQuality "1"]
[TimeControl "720+3"]

{[%evp 9,132,12,20,16,33,35,30,22,19,-10,-4,-12,-18,-39,-18,-32,-24,-33,0,-9,11,0,47,18,16,17,110,104,97,101,105,110,135,136,135,139,136,136,135,139,163,164,155,154,182,187,178,184,229,187,210,178,210,168,239,235,240,233,236,235,230,213,214,149,156,104,206,206,200,200,172,156,137,156,140,131,464,298,437,427,366,0,0,0,400,0,1438,1301,1302,1336,1303,1392,1391,1240,1251,1145,2368,1868,1523,1604,3258,1303,3166,3233,2184,1078,5214,826,635,578,1034,95,96,0,0,0,8,0,29979,29981,29985,29986,29986,29986,29986]} 1. d4 {[%emt 0:00:01]} d5 {[%emt 0:00:02]} 2. c4 {[%emt 0:00:01]} c6 {[%emt 0:00:01]} 3. Nf3 {[%emt 0:00:03]} Nf6 {[%emt 0:00:04]} 4. g3 {[%emt 0:00:01]} Bf5 {[%emt 0:00:29]} 5. Nc3 {[%emt 0:00:16]} e6 {[%emt 0:00:03]} 6. Nh4 {[%emt 0:00:03] D11: Slav Defence: 3 Nf3 sidelines and 3...Nf6 4 e3 Bg4.} Bg6 {[%emt 0:00:04]} 7. Nxg6 {[%emt 0:00:48]} hxg6 {[%emt 0:00:03]} 8. cxd5 {[%emt 0:00:08] White has an edge.} cxd5 {[%emt 0:00:37] [#]} 9. Qb3 $146 {[%emt 0:00:12]} ({Predecessor:} 9. Bg2 Nc6 10. a3 Bd6 11. e3 O-O 12. O-O a6 13. b4 b5 14. e4 Bc7 15. exd5 Nxd5 16. Nxd5 exd5 {0-1 (58) Amicone,R (1828)-Veliz,A (2085) Villa Ballester 2019}) 9... Qd7 {[%emt 0:00:16]} 10. e3 {[%emt 0:00:50]} Nc6 {[%emt 0:00:09]} 11. Be2 {[%emt 0:00:01]} Bd6 {[%emt 0:00:20]} 12. Bd2 {[%emt 0:00:02]} Rc8 {[%emt 0:00:20]} 13. Rc1 {[%emt 0:00:32]} O-O {[%emt 0:00:04]} 14. O-O {[%emt 0:00:01]} Na5 {[%emt 0:00:23]} 15. Qb5 {[%emt 0:00:39] [#] aiming for Qxd7.} Nc4 {[%emt 0:01:14]} (15... Nc6 $11) 16. Qxd7 {[%emt 0:00:21]} Nxd7 {[%emt 0:00:02]} 17. Bxc4 {[%emt 0:00:02]} Rxc4 {[%emt 0:00:15]} (17... dxc4 $11 18. a3 Rfd8) 18. Nb5 $16 {[%emt 0:00:10][%csl LRa7,LRd6][%cal Bc3b5,Bb5a3,Ba3c4][%mdl 32]} Bb8 {[%emt 0:00:43]} 19. Rxc4 {[%emt 0:03:31]} dxc4 {[%emt 0:00:04]} 20. Na3 {[%emt 0:00:00]} Rc8 {[%emt 0:00:29]} 21. Rc1 {[%emt 0:00:07]} Nb6 {[%emt 0:00:18]} 22. Ba5 {[%emt 0:00:12]} Nd5 {[%emt 0:02:46]} 23. Rxc4 {[%emt 0:00:12]} Rxc4 {[%emt 0:00:35]} 24. Nxc4 {[%emt 0:00:01][%mdl 4096] Endgame KBN-KBN} b5 {[%emt 0:00:07]} 25. Na3 {[%emt 0:01:11]} a6 {[%emt 0:00:04]} 26. Nc2 {[%emt 0:00:08]} Bc7 {[%emt 0:01:00]} 27. Bxc7 {[%emt 0:00:19]} Nxc7 $18 {[%emt 0:00:01] KN-KN} 28. Nb4 {[%emt 0:00:01]} Kf8 {[%emt 0:00:05]} 29. Kf1 {[%emt 0:00:04]} Ke7 {[%emt 0:00:02]} 30. Ke2 {[%emt 0:00:01]} Kd6 {[%emt 0:00:02]} 31. e4 {[%emt 0:00:14]} f6 {[%emt 0:00:22]} (31... a5 {was necessary.}) 32. f4 {[%emt 0:00:19]} a5 {[%emt 0:00:41]} 33. Nd3 {[%emt 0:00:01]} Na6 {[%emt 0:00:08]} 34. Ke3 {[%emt 0:00:29]} Nb8 {[%emt 0:00:32]} 35. g4 {[%emt 0:00:44]} Nd7 {[%emt 0:00:13]} 36. Ne1 {[%emt 0:00:20]} Nb6 {[%emt 0:00:09]} 37. b3 {[%emt 0:00:01] Inhibits Nc4+.} (37. Kd3 $142) 37... Nc8 {[%emt 0:00:32]} (37... f5 $16) 38. Nf3 {[%emt 0:00:17]} Ne7 {[%emt 0:00:05]} 39. Nh4 {[%emt 0:00:01]} f5 {[%emt 0:00:29]} 40. h3 {[%emt 0:00:50]} a4 {[%emt 0:00:05]} 41. bxa4 {[%emt 0:00:24]} bxa4 {[%emt 0:00:01]} 42. a3 {[%emt 0:00:03]} Kc6 $2 {[%emt 0:00:03][%mdl 8192]} (42... fxe4 $16 43. Kxe4 Nd5) 43. Kd3 {[%emt 0:00:05][%cal Od4d5] d5+! is the strong threat.} Kb5 {[%emt 0:00:05]} (43... fxe4+ {was worth a try.} 44. Kxe4 Kd6) 44. e5 {[%emt 0:00:06]} Kc6 {[%emt 0:00:03]} 45. Ng2 $2 {[%emt 0:00:01]} (45. Kc4 $18 {Strongly threatening Kd3.} Kb6 46. d5 fxg4 47. hxg4 (47. d6 Nc6 $16)) 45... Nd5 $11 {[%emt 0:00:01]} 46. Kc4 {[%emt 0:00:08]} g5 $2 {[%emt 0:00:04][%mdl 8192]} (46... Kb6 $11) 47. gxf5 $2 {[%emt 0:00:10]} (47. fxg5 $18 {And now gxf5 would win.} f4 48. Nh4) 47... exf5 $2 {[%emt 0:00:02][%mdl 8192]} (47... gxf4 $11 48. Nh4 (48. fxe6 $2 f3 $19) 48... Ne3+ 49. Kc3 exf5) 48. fxg5 $18 {[%emt 0:00:01]} f4 {[%emt 0:00:02]} 49. Ne1 {[%emt 0:00:06]} Ne3+ {[%emt 0:00:02]} 50. Kd3 {[%emt 0:00:01]} Kd5 {[%emt 0:00:04]} 51. h4 {[%emt 0:00:05]} Nf5 {[%emt 0:00:02]} 52. Nf3 {[%emt 0:00:01]} g6 {[%emt 0:00:02]} 53. e6 {[%emt 0:00:11]} Kxe6 {[%emt 0:00:02]} 54. Ke4 {[%emt 0:00:01]} Kd6 {[%emt 0:00:02]} 55. Ne5 {[%emt 0:00:03]} (55. Kxf4 $142 Ne7 56. Kg4) 55... f3 {[%emt 0:00:05]} 56. Nxf3 {[%emt 0:00:02]} Ke6 {[%emt 0:00:02]} 57. Kf4 {[%emt 0:00:04]} (57. d5+ $142 Kf7 58. Ke5) 57... Kd5 {[%emt 0:00:01]} 58. Kg4 {[%emt 0:00:03]} (58. h5 $142 Ng7 59. hxg6) 58... Ne3+ {[%emt 0:00:02]} 59. Kg3 {[%emt 0:00:02] Threatens to win with Ne5.} Nc4 {[%emt 0:00:02] Prevents Ne5.} 60. Ne5 $2 {[%emt 0:00:05]} (60. h5 $18 {and White stays clearly on top.} gxh5 61. g6) 60... Nxa3 $16 {[%emt 0:00:02] [#]} 61. Nxg6 {[%emt 0:00:00]} ({White should play} 61. h5 $1 $16 {[%cal Rh5g6]} Nb5 62. h6 (62. Nxg6 a3 $11) (62. hxg6 Nxd4 63. Kg4 Ne6 $11)) 61... Nb5 $11 {[%emt 0:00:07]} 62. Nf4+ {[%emt 0:00:02]} Ke4 {[%emt 0:00:08]} 63. g6 {[%emt 0:00:00] White threatens g7 and mate.} a3 $2 {[%emt 0:00:03][%mdl 8192]} (63... Nxd4 $11 64. Ne2 Nf5+ 65. Kh3 (65. Kg4 Ke5 $11) 65... Ke5) 64. g7 {[%emt 0:00:00] White mates.} a2 {[%emt 0:00:03]} 65. g8=Q {[%emt 0:00:00]} a1=Q {[%emt 0:00:04]} 66. Qe6+ {[%emt 0:00:00]} Kxd4 {[%emt 0:00:09] Weighted Error Value: White=0.30/Black=0.56} 1-0

[Event "5th Vera Menchik Memorial 2022"]
[Site "Prag"]
[Date "2022.06.05"]
[Round "6.15"]
[White "Stejskal, Michal"]
[Black "Brejnik, Gustav"]
[Result "0-1"]
[ECO "B11"]
[WhiteElo "1850"]
[BlackElo "2246"]
[Annotator "TA"]
[PlyCount "44"]
[EventDate "2022.06.05"]
[EventType "tourn"]
[EventCountry "CZE"]
[SourceTitle "playchess.com"]
[Source "ChessBase"]
[SourceQuality "1"]
[TimeControl "720+3"]

{[%evp 9,44,13,13,-10,43,30,35,39,53,60,58,46,48,53,53,53,54,29,28,27,151,135,156,66,377,-104,-94,-93,-101,-150,-127,-272,-163,-510,-518,-558,-437]} 1. e4 {[%emt 0:00:02]} c6 {[%emt 0:00:01]} 2. Nf3 {[%emt 0:00:04]} d5 {[%emt 0:00:01]} 3. Nc3 {[%emt 0:00:02]} Bg4 {[%emt 0:00:01]} 4. h3 {[%emt 0:00:02]} Bxf3 {[%emt 0:00:01]} 5. Qxf3 {[%emt 0:00:02]} e6 {[%emt 0:00:01]} 6. exd5 {[%emt 0:00:12] B11: Caro-Kann: Two Knights Variation.} exd5 {[%emt 0:00:35]} (6... cxd5 $11 7. Bb5+ Nc6) 7. d4 $14 {[%emt 0:00:04]} Bd6 {[%emt 0:00:14] Inhibits Qg3.} 8. Bd3 {[%emt 0:00:12] White is slightly better.} Ne7 {[%emt 0:01:19]} 9. O-O {[%emt 0:00:50] [#]} Nd7 $146 {[%emt 0:00:06]} ({Predecessor:} 9... Bc7 10. Bf4 Nd7 11. Bxc7 Qxc7 12. Bf5 O-O-O 13. Bxd7+ Qxd7 14. Qxf7 Rhg8 15. Qf3 Rdf8 {0-1 (34) Vassiliou,L (1339)-Mader,F (1521) Playchess.com INT 2020}) 10. Re1 {[%emt 0:00:06]} O-O {[%emt 0:00:07]} 11. Bg5 {[%emt 0:00:19][%cal Oc3e4]} h6 {[%emt 0:00:31]} 12. Bh4 {[%emt 0:00:08]} Re8 {[%emt 0:00:25]} 13. Re2 {[%emt 0:00:37]} Nf8 {[%emt 0:01:01]} 14. Rae1 {[%emt 0:00:10]} Ne6 {[%emt 0:00:24]} (14... Qd7 $1 $11 {keeps the balance.}) 15. Qg4 $1 $16 {[%emt 0:00:39] aiming for Rxe6.} Nf4 {[%emt 0:01:58] [#]} 16. Re3 {[%emt 0:01:06]} (16. Bf6 $1 $16 {[%csl Gf6][%cal Rg4g7]} Nfg6 17. Bxg6 fxg6 18. Qe6+ (18. Bxe7 Rxe7 19. Qxg6 Qd7 $16) 18... Kh8 19. Be5 (19. Bxe7 Rxe7 20. Qxg6 Rxe2 $16)) 16... Nxd3 $4 {[%emt 0:00:41][%mdl 8192] [#]} (16... h5 $1 $14 17. Qf3 Nxd3 18. cxd3 Qd7) 17. Rxd3 $2 {[%emt 0:00:09] [#]} (17. Bf6 $1 $18 {[%csl Gf6][%cal Rg4g7]} g6 18. cxd3) 17... Nf5 $17 {[%emt 0:01:02][%cal Re8e1][%mdl 512]} 18. Rxe8+ {[%emt 0:02:57]} Qxe8 {[%emt 0:00:01][%cal Re8e1]} 19. Rd1 {[%emt 0:00:02] Prevents Qe1+.} ({White should play} 19. f4 Qe6 20. Bf2) 19... Qe6 $40 {[%emt 0:00:09][%mdl 128] Black has strong attack.} 20. Nb1 {[%emt 0:03:45]} (20. Bg3 $17) 20... g6 {[%emt 0:00:17]} (20... Nxh4 $142 21. Qxh4 Re8) 21. Nd2 $2 {[%emt 0:00:12]} (21. Bg3 {nothing else works.}) 21... h5 $19 {[%emt 0:00:04]} 22. Qg5 {[%emt 0:00:20]} Be7 {[%emt 0:00:11] Weighted Error Value: White=0.67/Black=0.44} 0-1

[Event "5th Vera Menchik Memorial 2022"]
[Site "Prag"]
[Date "2022.06.05"]
[Round "6.16"]
[White "Hrbek, Tomas"]
[Black "Pascucci, Marco"]
[Result "0-1"]
[ECO "A65"]
[WhiteElo "1947"]
[BlackElo "2155"]
[Annotator "TA"]
[PlyCount "102"]
[EventDate "2022.06.05"]
[EventType "tourn"]
[EventCountry "CZE"]
[SourceTitle "playchess.com"]
[Source "ChessBase"]
[SourceQuality "1"]
[TimeControl "720+3"]

{[%evp 13,102,30,35,-1,0,-22,-1,-23,51,36,38,40,37,31,67,29,79,40,41,6,55,47,32,33,29,16,29,0,0,0,11,0,64,73,71,10,341,338,418,416,882,859,5418,2466,5411,1500,29994,736,721,718,912,715,718,718,693,677,743,742,897,0,0,0,0,0,0,0,0,-71,0,-55,-45,-53,-59,-269,0,-1377,0,-5145,-5600,-2138,-1022,-1436,-1503,-4918,-4914,-4918,-4914,-29992,-29993,-29993,-1672]} 1. d4 {[%emt 0:00:02]} Nf6 {[%emt 0:00:01]} 2. c4 {[%emt 0:00:02]} c5 {[%emt 0:00:01]} 3. d5 {[%emt 0:00:01]} e6 {[%emt 0:00:01]} 4. Nc3 {[%emt 0:00:11]} exd5 {[%emt 0:00:01]} 5. cxd5 {[%emt 0:00:01]} g6 {[%emt 0:00:01]} 6. e4 {[%emt 0:00:05]} d6 {[%emt 0:00:01]} 7. Bg5 {[%emt 0:00:19]} Bg7 {[%emt 0:00:05]} 8. Bc4 {[%emt 0:00:03] A65: Modern Benoni: 6 e4.} O-O {[%emt 0:00:14]} 9. Nge2 {[%emt 0:00:27]} h6 {[%emt 0:00:05] [#]} 10. Bf4 $146 {[%emt 0:00:48] The position is equal.} ({Predecessor:} 10. Bh4 a6 11. a4 b6 12. O-O Re8 13. Qc2 g5 14. Bg3 Nh5 15. Rfe1 Nxg3 16. Nxg3 {0-1 (41) Deulofeu Peramarch,E (1472)-Dilme Bosch,E (1957) Palafrugell 2017}) 10... Na6 {[%emt 0:00:30]} (10... Nh5 $11) 11. O-O {[%emt 0:00:39]} Nc7 {[%emt 0:00:05][%cal Ob7b5]} 12. Ng3 {[%emt 0:00:23]} a6 {[%emt 0:00:35]} 13. a4 {[%emt 0:00:01] Prevents b5.} b6 {[%emt 0:00:01]} 14. Qd2 {[%emt 0:00:43]} Kh7 {[%emt 0:00:46]} (14... g5 $11 15. Be3 Ng4) 15. Rae1 {[%emt 0:00:11]} Rb8 {[%emt 0:00:25]} 16. Ba2 {[%emt 0:01:46]} b5 {[%emt 0:00:10] [#]} (16... Ng4 $1 $11 {was preferrable.}) 17. Bxd6 $1 $14 {[%emt 0:00:10]} Qxd6 {[%emt 0:01:02]} 18. e5 {[%emt 0:00:01]} Qd8 {[%emt 0:00:24] Threatens to win with ...Ng4.} 19. exf6 {[%emt 0:00:09]} Bxf6 {[%emt 0:00:35]} 20. axb5 {[%emt 0:02:26]} (20. Nge4 $5 {[%cal Re4f6]}) 20... Nxb5 {[%emt 0:01:44]} 21. Nce4 {[%emt 0:00:30]} Bd4 {[%emt 0:00:32]} 22. Ne2 {[%emt 0:00:31]} Bb7 {[%emt 0:01:09]} (22... Bg7 $11) 23. Nxd4 {[%emt 0:01:00]} cxd4 {[%emt 0:00:01]} 24. Qf4 {[%emt 0:00:21]} ({White should play} 24. Bc4 $16) 24... f5 $2 {[%emt 0:00:07][%mdl 8192]} (24... Rc8 $1 $11) 25. Nc5 $18 {[%emt 0:00:15]} Bxd5 {[%emt 0:01:17]} 26. Bxd5 {[%emt 0:00:07] Black must now prevent Bc4.} Qxd5 {[%emt 0:00:03]} (26... Rc8 $142 27. Na4 Rc7) 27. Re7+ {[%emt 0:00:06][%mdl 64] Deflection} Kg8 {[%emt 0:00:46] [#]} 28. Qxh6 $1 {[%emt 0:01:42][%csl Gh6][%cal Re7g7]} Rf7 {[%emt 0:00:01] [#] Prevents Rg7+.} 29. Nd7 {[%emt 0:00:22]} (29. Rfe1 $142 $1 Qd6 (29... Rxe7 30. Rxe7) 30. Rxf7 Kxf7 31. Qh7+ Kf8 32. Ne6+ Ke8 33. Qg7 Qe7 34. Nc7+ $1 {[%mdl 512]} Kd7 35. Qxe7+ Kc8 36. Nxa6 Rb6 37. Rc1+ Rc6 38. Rxc6+ Nc7 39. Rxc7#) 29... Qxd7 {[%emt 0:00:26]} 30. Rxd7 {[%emt 0:00:02]} (30. Qxg6+ $142 Kh8 31. Qh5+ Kg7 32. Qxf7+ Kh6 33. Qh7+ Kg5 34. f4+ Kg4 35. Qh3#) 30... Rxd7 {[%emt 0:00:01]} 31. Qxg6+ {[%emt 0:00:02]} Kh8 {[%emt 0:00:01]} 32. Qh6+ {[%emt 0:00:02]} Kg8 {[%emt 0:00:01]} 33. Qe6+ {[%emt 0:00:02]} Rf7 {[%emt 0:00:01]} 34. Rc1 {[%emt 0:00:08] aiming for Rc5.} Rbf8 {[%emt 0:00:02]} 35. Rc6 {[%emt 0:00:03]} d3 {[%emt 0:00:05]} 36. Rc1 $2 {[%emt 0:00:05]} (36. Qe3 $18) 36... Nd4 $11 {[%emt 0:00:02]} 37. Qg6+ {[%emt 0:00:02]} Rg7 {[%emt 0:00:00]} 38. Qxa6 {[%emt 0:00:01] Strongly threatening Qc4+.} Ne2+ {[%emt 0:00:02]} 39. Kf1 {[%emt 0:00:02]} Nxc1 {[%emt 0:00:01] Dancing on a razor blade. Active counter play!} 40. Ke1 {[%emt 0:00:01]} (40. Qc4+ $11 {remains equal.} Kh7 41. Qxc1) 40... Rxg2 {[%emt 0:00:19]} (40... Kh7 $17 41. Qd6 Rgf7) 41. Qe6+ {[%emt 0:00:07]} (41. Kf1 $1 $11 Rg4 42. h3) 41... Kg7 $15 {[%emt 0:00:06] And now ...Rf6 would win.} 42. Qe5+ {[%emt 0:00:03]} Rf6 {[%emt 0:00:03]} 43. Qc7+ $2 {[%emt 0:00:02] [#]} (43. Kf1 $15 d2 44. Qe7+ Kg6 45. Qd8 Rxh2 46. Qxd2) 43... Kg6 $2 {[%emt 0:00:04]} ({Better is} 43... Rf7 $1 $19 {[%cal Rf7c7]} 44. Qe5+ Kh7) 44. Qd8 {[%emt 0:00:05][%mdl 8192] [#]} (44. Kf1 $11 d2 45. Qd8 Rxh2 46. Qxd2) 44... Re6+ $2 {[%emt 0:00:26]} (44... Rg1+ $1 $19 45. Kd2 Nb3+ 46. Kc3 d2 47. Qg8+ Kh6 48. Qxg1 Rc6+ 49. Kb4 Rc1) 45. Kd2 $2 {[%emt 0:00:02][%mdl 8192]} (45. Kf1 $11 Rg4 46. Qg8+ Kf6 47. Qd8+ Kg7 48. Qd7+ Kf6 49. Qd8+ Re7 50. Qf8+ Rf7 51. Qh6+ Ke5 52. Qxc1) 45... Rxf2+ $19 {[%emt 0:00:03]} 46. Kc3 {[%emt 0:00:02]} Rfe2 {[%emt 0:00:13] Hoping for ...Rc6+.} 47. Qg8+ {[%emt 0:00:03]} Kf6 {[%emt 0:00:01]} 48. Qh8+ {[%emt 0:00:01]} Ke7 {[%emt 0:00:01]} 49. Qh4+ {[%emt 0:00:04]} Kd7 {[%emt 0:00:02] ( -> ...Rc2+)} 50. Qa4+ {[%emt 0:00:02]} Rc6+ {[%emt 0:00:01]} 51. Kd4 {[%emt 0:00:04]} Re4+ {[%emt 0:00:01] Never resign too early!  Weighted Error Value: White=1.12/Black=0.86} 0-1

[Event "5th Vera Menchik Memorial 2022"]
[Site "Prag"]
[Date "2022.06.05"]
[Round "7.1"]
[White "Plat, Vojtech"]
[Black "Mladek, Richard"]
[Result "1/2-1/2"]
[ECO "C84"]
[WhiteElo "2547"]
[BlackElo "2361"]
[Annotator "TA"]
[PlyCount "132"]
[EventDate "2022.06.05"]
[EventType "tourn"]
[EventCountry "CZE"]
[SourceTitle "playchess.com"]
[Source "ChessBase"]
[SourceQuality "1"]
[TimeControl "720+3"]

{[%evp 20,132,-12,-28,22,20,56,47,64,22,22,36,26,34,31,16,29,38,32,0,25,0,3,0,27,0,0,-23,-20,-28,0,0,0,-8,0,-32,0,0,56,75,56,70,70,64,53,0,0,0,208,208,204,152,150,170,179,173,186,189,278,266,296,301,289,211,214,143,143,127,116,133,143,139,106,0,173,156,152,124,139,130,131,33,49,42,43,22,21,20,22,20,20,20,24,20,23,8,8,8,8,8,8,8,32,28,38,0,0,0,0,0,0,0,0,0,0]} 1. e4 {[%emt 0:00:01]} e5 {[%emt 0:00:00][%cal Be7e5,Be5d4][%mdl 32]} 2. Nf3 {[%emt 0:00:01]} Nc6 {[%emt 0:00:01]} 3. Bb5 {[%emt 0:00:01]} a6 {[%emt 0:00:00]} 4. Ba4 {[%emt 0:00:01]} Nf6 {[%emt 0:00:01]} 5. d4 {[%emt 0:00:01]} exd4 {[%emt 0:00:12]} 6. O-O {[%emt 0:00:02]} Be7 {[%emt 0:00:16]} 7. Re1 {[%emt 0:00:02]} b5 {[%emt 0:00:12]} 8. e5 {[%emt 0:00:01]} Nxe5 {[%emt 0:00:01]} 9. Nxe5 {[%emt 0:00:02]} bxa4 {[%emt 0:00:01]} 10. Qxd4 {[%emt 0:00:01]} O-O {[%emt 0:00:22]} 11. Nc3 {[%emt 0:00:13]} Bb7 {[%emt 0:01:00] C84: Closed Ruy Lopez: Unusual White 6th moves.} ({Better is} 11... a3) 12. Qxa4 $11 {[%emt 0:00:05]} d5 {[%emt 0:01:55]} 13. Bg5 {[%emt 0:00:29] [#]} h6 $146 {[%emt 0:00:56] White is slightly better.} ({Predecessor:} 13... d4 14. Rad1 c5 15. Nc6 Bxc6 16. Qxc6 Rb8 17. Na4 Qd6 18. Qxd6 Bxd6 19. Bxf6 gxf6 {½-½ (36) Lacina,A (2160)-Lengyel,B (2440) Ceske Budejovice 1993}) 14. Bh4 {[%emt 0:00:28] White is much more active. The black rooks are badly placed.} (14. Bxf6 $5 Bxf6 15. Nd7 $16) 14... Ne4 {[%emt 0:00:14]} 15. Nxe4 {[%emt 0:01:56]} dxe4 {[%emt 0:00:30]} 16. Rad1 {[%emt 0:00:03]} Qe8 {[%emt 0:00:01]} 17. Qxe8 {[%emt 0:00:06]} Rfxe8 {[%emt 0:00:03]} 18. Bxe7 {[%emt 0:00:02]} Rxe7 {[%emt 0:00:01]} 19. Nd7 {[%emt 0:00:14]} f5 {[%emt 0:00:13]} (19... Bc6 $5 20. Nc5 a5 $11) 20. Nc5 {[%emt 0:00:08]} Bc6 {[%emt 0:00:03]} 21. Nb3 {[%emt 0:00:52]} Kf7 {[%emt 0:00:29]} 22. Nd4 {[%emt 0:00:40]} Bd7 {[%emt 0:00:04]} 23. c4 {[%emt 0:00:08]} Rb8 {[%emt 0:00:17]} 24. b3 {[%emt 0:00:01]} g6 {[%emt 0:00:37][%cal Bg7g6,Bg6g5][%mdl 32]} 25. f3 $1 {[%emt 0:00:06]} c5 {[%emt 0:00:21]} 26. Nc2 {[%emt 0:00:05]} Bc6 {[%emt 0:00:27]} 27. f4 {[%emt 0:00:35]} ({Reject} 27. Rd6 Re6 28. Rxe6 Kxe6 $15) 27... g5 {[%emt 0:00:33]} 28. Ne3 {[%emt 0:00:01]} Kf6 {[%emt 0:00:19]} ({Black should try} 28... gxf4 $11 29. Nxf5 Re6) 29. Rf1 $14 {[%emt 0:00:42] [#] Threatens to win with fxg5+.} ({Don't play} 29. Rd6+ Re6 30. Rxe6+ (30. fxg5+ hxg5 31. Red1 f4 $15) 30... Kxe6 $11) 29... g4 {[%emt 0:00:52]} (29... gxf4 $2 30. Rxf4 Rd7 31. Rxf5+ Ke6 32. Rxd7 Bxd7 33. Rxc5 $18) 30. Rd6+ {[%emt 0:00:13]} Re6 {[%emt 0:00:01]} 31. Rfd1 $36 {[%emt 0:00:01][%mdl 2048] White fights for an advantage.} a5 {[%emt 0:00:44]} 32. Rd8 {[%emt 0:00:27]} (32. Kf2 $14) 32... Rxd8 $11 {[%emt 0:01:24]} 33. Rxd8 {[%emt 0:00:01][%mdl 4096] Endgame Black must now prevent Rf8+. KRB-KRN} Kg6 $2 {[%emt 0:00:18]} (33... Re8 $1 $11 34. Rd6+ Re6) 34. Kf2 $18 {[%emt 0:00:25]} a4 {[%emt 0:00:02]} 35. Ke2 {[%emt 0:00:42]} axb3 {[%emt 0:00:02]} 36. axb3 {[%emt 0:00:00]} Bb7 {[%emt 0:00:04]} 37. Rg8+ {[%emt 0:00:14]} Kf7 {[%emt 0:00:25]} 38. Rb8 {[%emt 0:00:02]} Rb6 {[%emt 0:00:14]} (38... Bc6 $142 39. Nxf5 e3 40. Nxe3 Bxg2) 39. Nxf5 {[%emt 0:00:20][%cal Ob8b7] Hoping for Rxb7+!} Ke6 {[%emt 0:00:01]} 40. Nxh6 {[%emt 0:00:58]} Rxb3 {[%emt 0:00:01]} 41. Nxg4 {[%emt 0:00:01]} Kf5 {[%emt 0:00:02]} 42. Ne3+ {[%emt 0:00:31]} Kxf4 {[%emt 0:00:02]} 43. g3+ {[%emt 0:00:15]} Ke5 {[%emt 0:00:02]} 44. Rd8 {[%emt 0:00:23]} Rb2+ {[%emt 0:00:18]} 45. Rd2 {[%emt 0:00:01]} Rb1 {[%emt 0:00:03]} 46. Nd1 {[%emt 0:00:33]} (46. h4 $16) 46... Bc8 $2 {[%emt 0:00:01]} (46... Rc1 $11 {and Black is okay.}) 47. Rd5+ {[%emt 0:00:05]} Kf6 {[%emt 0:00:01]} 48. Nc3 {[%emt 0:00:07]} Bg4+ {[%emt 0:00:14]} 49. Kd2 {[%emt 0:00:11]} Rb2+ {[%emt 0:00:09] [#]} 50. Kc1 {[%emt 0:00:02]} (50. Ke3 $1 $16 Rb3 51. Kf4 (51. Kd2 e3+ 52. Kc2 Rb4 $11) 51... Rxc3 52. Kxg4) 50... Rxh2 $14 {[%emt 0:00:08]} 51. Nxe4+ {[%emt 0:00:00]} Ke7 {[%emt 0:00:04]} 52. Nxc5 {[%emt 0:00:13]} Rg2 {[%emt 0:00:03]} 53. Rd3 {[%emt 0:00:07]} Bf5 {[%emt 0:00:01]} 54. Rc3 {[%emt 0:00:13]} Kd6 {[%emt 0:00:04]} 55. Nb3 {[%emt 0:00:01]} Be4 {[%emt 0:00:08]} 56. c5+ {[%emt 0:00:03]} Kc6 {[%emt 0:00:01]} 57. Nd4+ {[%emt 0:00:48]} Kd5 {[%emt 0:00:01]} 58. Nb5 {[%emt 0:00:01] c6 is the strong threat.} Kc6 {[%emt 0:00:04]} 59. Nd6 {[%emt 0:00:01]} Bd5 {[%emt 0:00:02]} 60. Kd1 {[%emt 0:00:08]} Ra2 {[%emt 0:00:09]} 61. Nf5 {[%emt 0:00:05] Strongly threatening Ne7+.} Be4 {[%emt 0:00:02]} 62. g4 {[%emt 0:00:07]} Bxf5 {[%emt 0:00:04] The position is equal.} 63. gxf5 {[%emt 0:00:01]} Rf2 {[%emt 0:00:01]} 64. Ra3 {[%emt 0:00:07]} Rxf5 {[%emt 0:00:03]} 65. Ra6+ {[%emt 0:00:00]} Kb5 {[%emt 0:00:03]} 66. Rd6 {[%emt 0:00:02]} Rxc5 {[%emt 0:00:05] Black defended with fortune.  Weighted Error Value: White=0.16 (very precise) /Black=0.27 (precise)} 1/2-1/2